[Event "Mistrovství Čech mládeže 2023 - HD12"]
[Site "Harrachov, Czech Republic"]
[Date "2023.10.28"]
[Round "9.3"]
[White "Lutskiy, Mikhail"]
[Black "Gernert, Tomáš"]
[Result "1-0"]
[TimeControl "90m + 30s"]
[WhiteElo "1353"]
[BlackElo "1389"]

1. e4 {[%clk 01:30:55]} {[%emt 00:00:03]} c5 {[%clk 01:30:53]} {[%emt
00:00:08]} 2. Nf3 {[%clk 01:31:02]} {[%emt 00:00:23]} Nc6 {[%clk 01:30:59]}
{[%emt 00:00:24]} 3. Bb5 {[%clk 01:31:04]} {[%emt 00:00:28]} e6 {[%clk
01:31:25]} {[%emt 00:00:04]} 4. Bxc6 {[%clk 01:30:50]} {[%emt 00:00:42]} bxc6
{[%clk 01:31:50]} {[%emt 00:00:07]} 5. d3 {[%clk 01:30:16]} {[%emt 00:01:04]}
d6 {[%clk 01:32:12]} {[%emt 00:00:08]} 6. O-O {[%clk 01:30:22]} {[%emt
00:00:24]} e5 {[%clk 01:32:28]} {[%emt 00:00:15]} 7. h3 {[%clk 01:30:41]}
{[%emt 00:00:10]} f5 {[%clk 01:29:27]} {[%emt 00:03:31]} 8. Bg5 {[%clk
01:29:20]} {[%emt 00:01:51]} Nf6 {[%clk 01:29:41]} {[%emt 00:00:16]} 9. Nc3
{[%clk 01:28:43]} {[%emt 00:01:07]} Be7 {[%clk 01:29:14]} {[%emt 00:00:58]} 10.
Re1 {[%clk 01:26:07]} {[%emt 00:03:06]} O-O {[%clk 01:20:04]} {[%emt 00:09:40]}
11. Bd2 {[%clk 01:17:33]} {[%emt 00:09:03]} Rb8 {[%clk 01:08:00]} {[%emt
00:12:35]} 12. Rb1 {[%clk 01:17:02]} {[%emt 00:00:59]} Ne8 {[%clk 00:54:02]}
{[%emt 00:14:29]} 13. Qc1 {[%clk 01:12:41]} {[%emt 00:04:50]} f4 {[%clk
00:53:41]} {[%emt 00:00:52]} 14. Qd1 {[%clk 01:12:52]} {[%emt 00:00:19]} Nc7
{[%clk 00:48:55]} {[%emt 00:05:16]} 15. a3 {[%clk 01:09:08]} {[%emt 00:04:15]}
a5 {[%clk 00:48:27]} {[%emt 00:00:58]} 16. Ne2 {[%clk 01:05:30]} {[%emt
00:04:07]} Ne6 {[%clk 00:46:10]} {[%emt 00:02:47]} 17. c4 {[%clk 01:03:29]}
{[%emt 00:02:32]} Ra8 {[%clk 00:35:18]} {[%emt 00:11:22]} 18. Nc1 {[%clk
01:01:28]} {[%emt 00:02:31]} Nd4 {[%clk 00:34:22]} {[%emt 00:01:26]} 19. Nb3
{[%clk 01:01:34]} {[%emt 00:00:24]} Nxf3+ {[%emt 00:00:37]} 20. Qxf3 {[%clk
01:01:47]} {[%emt 00:00:14]} a4 {[%clk 00:34:38]} {[%emt 00:00:10]} 21. Nc1
{[%clk 01:00:44]} {[%emt 00:01:32]} Rf6 {[%clk 00:33:43]} {[%emt 00:01:25]} 22.
Ne2 {[%clk 00:58:16]} {[%emt 00:02:59]} Qe8 {[%clk 00:32:48]} {[%emt 00:01:25]}
23. Kh1 {[%clk 00:55:18]} {[%emt 00:03:28]} Rh6 {[%clk 00:31:53]} {[%emt
00:01:24]} 24. Kg1 {[%clk 00:53:29]} {[%emt 00:02:19]} Qg6 {[%clk 00:30:23]}
{[%emt 00:02:01]} 25. Kf1 {[%clk 00:51:33]} {[%emt 00:02:25]} Rb8 {[%clk
00:26:23]} {[%emt 00:04:30]} 26. Bc3 {[%clk 00:50:11]} {[%emt 00:01:52]} Rh4
{[%clk 00:24:14]} {[%emt 00:02:39]} 27. Red1 {[%clk 00:46:57]} {[%emt
00:03:44]} Qh6 {[%clk 00:23:52]} {[%emt 00:00:52]} 28. Ng1 {[%clk 00:45:59]}
{[%emt 00:01:28]} g5 {[%clk 00:23:28]} {[%emt 00:00:55]} 29. Qe2 {[%clk
00:45:44]} {[%emt 00:00:41]} g4 {[%clk 00:20:27]} {[%emt 00:03:35]} 30. hxg4
{[%clk 00:45:58]} {[%emt 00:00:16]} Bxg4 {[%clk 00:20:54]} {[%emt 00:00:03]} 31.
f3 {[%clk 00:46:16]} {[%emt 00:00:12]} Rh1 {[%clk 00:19:39]} {[%emt 00:01:45]}
32. Be1 {[%clk 00:45:30]} {[%emt 00:01:15]} Qh2 {[%clk 00:18:24]} {[%emt
00:01:45]} 33. Bf2 {[%clk 00:45:40]} {[%emt 00:00:20]} Bh3 {[%clk 00:15:35]}
{[%emt 00:03:19]} 34. gxh3 {[%clk 00:44:54]} {[%emt 00:01:15]} Bh4 {[%clk
00:15:59]} {[%emt 00:00:07]} 35. Rdc1 {[%clk 00:40:51]} {[%emt 00:04:33]} Qxh3+
{[%clk 00:15:49]} {[%emt 00:00:40]} 36. Ke1 {[%clk 00:41:10]} {[%emt 00:00:11]}
Rxg1+ {[%clk 00:16:10]} {[%emt 00:00:09]} 37. Kd2 {[%clk 00:41:31]} {[%emt
00:00:09]} Rg2 {[%clk 00:16:02]} {[%emt 00:00:39]} 38. Rg1 {[%clk 00:41:43]}
{[%emt 00:00:18]} Kf7 {[%clk 00:16:05]} {[%emt 00:00:27]} 39. Rxg2 {[%clk
00:41:49]} {[%emt 00:00:23]} Qxg2 {[%clk 00:16:30]} {[%emt 00:00:06]} 40. Bxh4
{[%clk 00:41:59]} {[%emt 00:00:19]} Qxe2+ {[%clk 00:16:03]} {[%emt 00:00:57]}
41. Kxe2 {[%clk 00:42:15]} {[%emt 00:00:14]} Rb3 {[%clk 00:16:27]} {[%emt
00:00:06]} 42. Bf2 {[%clk 00:42:09]} {[%emt 00:00:36]} h5 {[%clk 00:15:01]}
{[%emt 00:01:57]} 43. Kd2 {[%clk 00:42:14]} {[%emt 00:00:24]} Ke6 {[%clk
00:15:21]} {[%emt 00:00:11]} 44. Bh4 {[%clk 00:42:16]} {[%emt 00:00:27]} d5
{[%clk 00:15:39]} {[%emt 00:00:13]} 45. cxd5+ {[%clk 00:42:19]} {[%emt
00:00:26]} cxd5 {[%clk 00:16:04]} {[%emt 00:00:05]} 46. Kc2 {[%clk 00:42:26]}
{[%emt 00:00:23]} dxe4 {[%clk 00:15:12]} {[%emt 00:01:22]} 47. fxe4 {[%clk
00:42:09]} {[%emt 00:00:47]} c4 {[%clk 00:13:50]} {[%emt 00:01:52]} 48. Rd1
{[%clk 00:41:59]} {[%emt 00:00:40]} Kd6 {[%clk 00:09:10]} {[%emt 00:05:11]} 49.
dxc4+ {[%clk 00:41:48]} {[%emt 00:00:39]} Kc5 {[%clk 00:09:35]} {[%emt
00:00:06]} 50. Rd5+ {[%clk 00:41:40]} {[%emt 00:00:39]} Kxc4 {[%clk 00:09:59]}
{[%emt 00:00:05]} 51. Bf2 {[%clk 00:41:33]} {[%emt 00:00:37]} Rb5 {[%clk
00:08:51]} {[%emt 00:01:38]} 52. Rxb5 {[%clk 00:41:55]} {[%emt 00:00:08]} Kxb5
{[%clk 00:09:17]} {[%emt 00:00:04]} 53. Kc3 {[%clk 00:42:08]} {[%emt 00:00:17]}
h4 {[%clk 00:08:59]} {[%emt 00:00:49]} 54. Bxh4 {[%clk 00:42:24]} {[%emt
00:00:13]} f3 {[%clk 00:09:20]} {[%emt 00:00:10]} 55. Bf2 {[%clk 00:42:48]}
{[%emt 00:00:06]} Kc6 {[%clk 00:04:16]} {[%emt 00:05:34]} 56. Kb4 {[%clk
00:43:01]} {[%emt 00:00:16]} Kb7 {[%clk 00:04:41]} {[%emt 00:00:06]} 57. Kxa4
{[%clk 00:43:10]} {[%emt 00:00:16]} Ka6 {[%clk 00:04:19]} {[%emt 00:00:56]} 58.
b4 {[%clk 00:43:16]} {[%emt 00:00:25]} Kb7 {[%clk 00:04:43]} {[%emt 00:00:06]}
59. b5 {[%clk 00:43:37]} {[%emt 00:00:08]} Ka8 {[%clk 00:05:07]} {[%emt
00:00:06]} 60. b6 {[%clk 00:43:51]} {[%emt 00:00:16]} Kb7 {[%clk 00:05:34]}
{[%emt 00:00:03]} 61. Ka5 {[%clk 00:43:56]} {[%emt 00:00:25]} Kb8 {[%clk
00:05:57]} {[%emt 00:00:08]} 62. Ka6 {[%clk 00:43:41]} {[%emt 00:00:45]} Ka8
{[%clk 00:06:21]} {[%emt 00:00:05]} 63. b7+ {[%clk 00:44:04]} {[%emt 00:00:07]}
Kb8 {[%clk 00:06:47]} {[%emt 00:00:04]} 64. Ba7+ {[%clk 00:44:22]} {[%emt
00:00:12]} Kc7 {[%clk 00:07:12]} {[%emt 00:00:06]} 65. b8=Q+ {[%clk 00:44:45]}
{[%emt 00:00:06]} 1-0

[Event "Mistrovství Čech mládeže 2023 - HD12"]
[Site "Harrachov, Czech Republic"]
[Date "2023.10.28"]
[Round "9.4"]
[White "Trejbal, Jindřich"]
[Black "Bukovskij, Dmitri"]
[Result "1/2-1/2"]
[TimeControl "90m + 30s"]
[WhiteElo "1329"]
[BlackElo "1391"]

1. e4 {[%clk 01:30:51]} {[%emt 00:00:09]} c5 {[%clk 01:30:30]} {[%emt
00:00:31]} 2. Nf3 {[%clk 01:30:54]} {[%emt 00:00:26]} e6 {[%clk 01:29:51]}
{[%emt 00:01:09]} 3. d4 {[%clk 01:29:38]} {[%emt 00:01:46]} cxd4 {[%clk
01:28:48]} {[%emt 00:01:32]} 4. Nxd4 {[%clk 01:29:22]} {[%emt 00:00:47]} Nf6
{[%clk 01:27:30]} {[%emt 00:01:48]} 5. Nc3 {[%clk 01:28:15]} {[%emt 00:01:37]}
Bb4 {[%clk 01:26:18]} {[%emt 00:01:42]} 6. e5 {[%clk 01:27:10]} {[%emt
00:01:34]} Nd5 {[%clk 01:25:24]} {[%emt 00:01:25]} 7. Bd2 {[%clk 01:26:08]}
{[%emt 00:01:32]} Bxc3 {[%clk 01:24:53]} {[%emt 00:01:01]} 8. bxc3 {[%clk
01:25:44]} {[%emt 00:00:54]} Qc7 {[%clk 01:21:44]} {[%emt 00:03:39]} 9. f4
{[%clk 01:14:44]} {[%emt 00:11:30]} Nxc3 {[%clk 01:19:50]} {[%emt 00:02:23]} 10.
Qf3 {[%clk 01:09:15]} {[%emt 00:05:57]} Nd5 {[%clk 01:17:50]} {[%emt 00:02:33]}
11. Qa3 {[%clk 01:06:13]} {[%emt 00:03:31]} a6 {[%clk 01:16:19]} {[%emt
00:02:02]} 12. Nb5 {[%clk 01:05:28]} {[%emt 00:01:16]} axb5 {[%clk 01:14:30]}
{[%emt 00:02:19]} 13. Qxa8 {[%clk 01:05:31]} {[%emt 00:00:26]} O-O {[%clk
01:12:12]} {[%emt 00:02:47]} 14. Bd3 {[%clk 01:02:01]} {[%emt 00:03:59]} b6
{[%clk 01:11:24]} {[%emt 00:01:19]} 15. Qa3 {[%clk 01:01:00]} {[%emt 00:01:30]}
Bb7 {[%clk 01:10:50]} {[%emt 00:01:06]} 16. O-O {[%clk 00:59:00]} {[%emt
00:02:29]} Nc6 {[%clk 01:10:08]} {[%emt 00:01:12]} 17. Be4 {[%clk 00:50:22]}
{[%emt 00:09:08]} Ra8 {[%clk 01:09:49]} {[%emt 00:00:45]} 18. Qd3 {[%clk
00:48:59]} {[%emt 00:01:57]} Ncb4 {[%clk 01:09:04]} {[%emt 00:01:15]} 19. Bxb4
{[%clk 00:43:49]} {[%emt 00:05:41]} Nxb4 {[%clk 01:08:50]} {[%emt 00:00:43]} 20.
Bxh7+ {[%clk 00:42:43]} {[%emt 00:01:36]} Kf8 {[%clk 01:08:12]} {[%emt
00:01:08]} 21. Qxb5 {[%clk 00:41:38]} {[%emt 00:01:35]} Nxc2 {[%clk 01:08:02]}
{[%emt 00:00:40]} 22. Bxc2 {[%clk 00:41:04]} {[%emt 00:01:05]} Qxc2 {[%clk
01:08:14]} {[%emt 00:00:18]} 23. Rf2 {[%clk 00:40:11]} {[%emt 00:01:22]} Qc3
{[%clk 01:08:21]} {[%emt 00:00:22]} 24. Qb2 {[%clk 00:39:27]} {[%emt 00:01:15]}
Qc6 {[%clk 01:08:32]} {[%emt 00:00:19]} 25. Rc1 {[%clk 00:37:42]} {[%emt
00:02:15]} Qd5 {[%clk 01:08:18]} {[%emt 00:00:43]} 26. Qxb6 {[%clk 00:37:01]}
{[%emt 00:01:12]} Ke8 {[%clk 01:07:47]} {[%emt 00:01:01]} 27. Qb3 {[%clk
00:34:12]} {[%emt 00:03:10]} Qe4 {[%clk 01:07:11]} {[%emt 00:01:15]} 28. Qf3
{[%clk 00:31:08]} {[%emt 00:03:35]} Qxf3 {[%clk 01:07:05]} {[%emt 00:00:35]} 29.
gxf3 {[%clk 00:31:27]} {[%emt 00:00:11]} Ra3 {[%clk 01:07:09]} {[%emt
00:00:26]} 30. Rb1 {[%clk 00:29:59]} {[%emt 00:01:58]} Bd5 {[%clk 01:06:05]}
{[%emt 00:01:35]} 31. h4 {[%clk 00:26:41]} {[%emt 00:03:48]} Ra4 {[%clk
01:05:36]} {[%emt 00:00:58]} 32. Kh2 {[%clk 00:26:10]} {[%emt 00:01:01]} Rxf4
{[%clk 01:05:51]} {[%emt 00:00:16]} 33. Kg3 {[%clk 00:26:01]} {[%emt 00:00:38]}
Ra4 {[%clk 01:06:05]} {[%emt 00:00:16]} 34. f4 {[%clk 00:24:18]} {[%emt
00:02:12]} Ra3+ {[%clk 01:06:10]} {[%emt 00:00:28]} 35. Kg4 {[%clk 00:24:05]}
{[%emt 00:00:41]} Be4 {[%clk 01:06:25]} {[%emt 00:00:15]} 36. Rb3 {[%clk
00:23:23]} {[%emt 00:01:12]} Ra4 {[%clk 01:06:01]} {[%emt 00:00:54]} 37. a3
{[%clk 00:21:32]} {[%emt 00:02:22]} Bf5+ {[%clk 01:05:22]} {[%emt 00:01:08]} 38.
Kg3 {[%clk 00:18:22]} {[%emt 00:03:39]} Be4 {[%clk 01:05:15]} {[%emt 00:00:37]}
39. Re2 {[%clk 00:17:40]} {[%emt 00:01:12]} Bd5 {[%clk 01:05:20]} {[%emt
00:00:27]} 40. Rc3 {[%clk 00:17:23]} {[%emt 00:00:46]} Ke7 {[%clk 01:05:06]}
{[%emt 00:00:44]} 41. Ree3 {[%clk 00:16:55]} {[%emt 00:00:58]} f6 {[%clk
01:04:31]} {[%emt 00:01:06]} 1/2-1/2

[Event "Mistrovství Čech mládeže 2023 - HD12"]
[Site "Harrachov, Czech Republic"]
[Date "2023.10.28"]
[Round "9.5"]
[White "Černý, Rodan"]
[Black "Kolář, Edvard"]
[Result "1/2-1/2"]
[TimeControl "90m + 30s"]
[WhiteElo "1383"]
[BlackElo "1473"]

1. d4 {[%clk 01:30:49]} {[%emt 00:00:11]} d5 {[%clk 01:30:45]} {[%emt
00:00:16]} 2. Nf3 {[%clk 01:31:15]} {[%emt 00:00:04]} Nf6 {[%clk 01:30:39]}
{[%emt 00:00:35]} 3. g3 {[%clk 01:31:30]} {[%emt 00:00:15]} g6 {[%clk
01:30:41]} {[%emt 00:00:28]} 4. Bg2 {[%clk 01:31:53]} {[%emt 00:00:04]} Bg7
{[%clk 01:31:04]} {[%emt 00:00:11]} 5. O-O {[%clk 01:31:54]} {[%emt 00:00:29]}
O-O {[%clk 01:31:14]} {[%emt 00:00:19]} 6. h3 {[%clk 01:31:50]} {[%emt
00:00:34]} c5 {[%clk 01:31:08]} {[%emt 00:00:37]} 7. c4 {[%clk 01:31:00]}
{[%emt 00:01:20]} cxd4 {[%clk 01:28:48]} {[%emt 00:02:48]} 8. Qxd4 {[%clk
01:29:41]} {[%emt 00:01:49]} Nc6 {[%clk 01:26:23]} {[%emt 00:02:52]} 9. Qc5
{[%clk 01:27:21]} {[%emt 00:02:55]} e6 {[%clk 01:20:07]} {[%emt 00:06:35]} 10.
cxd5 {[%clk 01:23:39]} {[%emt 00:04:23]} exd5 {[%clk 01:15:14]} {[%emt
00:05:20]} 11. Rd1 {[%clk 01:22:16]} {[%emt 00:01:55]} Ne4 {[%clk 01:13:58]}
{[%emt 00:01:47]} 12. Qxd5 {[%clk 01:21:16]} {[%emt 00:01:30]} Qxd5 {[%clk
01:13:59]} {[%emt 00:00:29]} 13. Rxd5 {[%clk 01:21:38]} {[%emt 00:00:08]} Nb4
{[%clk 01:14:23]} {[%emt 00:00:06]} 14. Rd4 {[%clk 01:17:19]} {[%emt 00:04:48]}
Bxd4 {[%clk 01:14:42]} {[%emt 00:00:11]} 15. Nxd4 {[%clk 01:17:46]} {[%emt
00:00:01]} f5 {[%clk 01:10:44]} {[%emt 00:04:30]} 16. Bf4 {[%clk 01:16:32]}
{[%emt 00:01:43]} Rd8 {[%clk 01:08:43]} {[%emt 00:02:29]} 17. a3 {[%clk
01:14:51]} {[%emt 00:02:15]} Rxd4 {[%emt 00:01:10]} 18. axb4 {[%clk 01:15:14]}
{[%emt 00:00:06]} Rxb4 {[%clk 01:07:54]} {[%emt 00:00:39]} 19. Be5 {[%clk
01:14:11]} {[%emt 00:01:33]} Rb5 {[%clk 01:00:40]} {[%emt 00:07:39]} 20. Bd4
{[%clk 01:12:29]} {[%emt 00:02:14]} Be6 {[%clk 00:53:16]} {[%emt 00:07:58]} 21.
Nc3 {[%clk 01:10:06]} {[%emt 00:02:49]} Nxc3 {[%clk 00:53:01]} {[%emt
00:00:49]} 22. Bxc3 {[%clk 01:10:05]} {[%emt 00:00:30]} Bd5 {[%clk 00:52:03]}
{[%emt 00:01:28]} 23. Bf1 {[%clk 01:09:45]} {[%emt 00:00:50]} a5 {[%clk
00:48:48]} {[%emt 00:03:46]} 24. e4 {[%clk 01:09:06]} {[%emt 00:01:09]} Bc6
{[%clk 00:46:41]} {[%emt 00:02:37]} 1/2-1/2

[Event "Mistrovství Čech mládeže 2023 - HD12"]
[Site "Harrachov, Czech Republic"]
[Date "2023.10.28"]
[Round "9.6"]
[White "Kroulík, Štěpán"]
[Black "Šára, David"]
[Result "1-0"]
[TimeControl "90m + 30s"]
[WhiteElo "1454"]
[BlackElo "1320"]

1. e4 {[%clk 01:30:57]} {[%emt 00:00:03]} e5 {[%clk 01:30:56]} {[%emt
00:00:05]} 2. Nf3 {[%clk 01:31:20]} {[%emt 00:00:07]} Nc6 {[%clk 01:30:05]}
{[%emt 00:01:21]} 3. Bc4 {[%clk 01:31:36]} {[%emt 00:00:13]} Bc5 {[%clk
01:30:30]} {[%emt 00:00:05]} 4. c3 {[%clk 01:31:54]} {[%emt 00:00:12]} Nf6
{[%clk 01:30:50]} {[%emt 00:00:10]} 5. d4 {[%clk 01:32:14]} {[%emt 00:00:10]}
exd4 {[%clk 01:31:17]} {[%emt 00:00:03]} 6. cxd4 {[%clk 01:32:31]} {[%emt
00:00:13]} Bb4+ {[%clk 01:31:43]} {[%emt 00:00:04]} 7. Bd2 {[%clk 01:32:44]}
{[%emt 00:00:17]} Bxd2+ {[%clk 01:31:43]} {[%emt 00:00:31]} 8. Nbxd2 {[%clk
01:33:04]} {[%emt 00:00:09]} d5 {[%clk 01:31:40]} {[%emt 00:00:33]} 9. exd5
{[%clk 01:33:02]} {[%emt 00:00:32]} Nxd5 {[%clk 01:32:03]} {[%emt 00:00:07]} 10.
O-O {[%clk 01:32:57]} {[%emt 00:00:36]} O-O {[%clk 01:32:26]} {[%emt 00:00:07]}
11. Rc1 {[%clk 01:33:04]} {[%emt 00:00:23]} Bg4 {[%clk 01:32:38]} {[%emt
00:00:17]} 12. h3 {[%clk 01:32:35]} {[%emt 00:00:59]} Bh5 {[%clk 01:32:53]}
{[%emt 00:00:13]} 13. Bxd5 {[%clk 01:32:20]} {[%emt 00:00:47]} Qxd5 {[%clk
01:33:05]} {[%emt 00:00:18]} 14. Qa4 {[%clk 01:32:03]} {[%emt 00:00:47]} Rfe8
{[%clk 01:29:52]} {[%emt 00:03:40]} 15. Rc5 {[%clk 01:31:26]} {[%emt 00:01:09]}
Bxf3 {[%clk 01:16:19]} {[%emt 00:14:04]} 16. Rxd5 {[%clk 01:31:23]} {[%emt
00:00:33]} Bxd5 {[%clk 01:16:41]} {[%emt 00:00:08]} 17. Qb5 {[%clk 01:27:59]}
{[%emt 00:03:55]} Ne7 {[%clk 01:11:53]} {[%emt 00:05:16]} 18. Re1 {[%clk
01:24:26]} {[%emt 00:04:05]} Bc6 {[%clk 01:11:35]} {[%emt 00:00:47]} 19. Qg5
{[%clk 01:22:27]} {[%emt 00:02:28]} Ng6 {[%clk 01:11:21]} {[%emt 00:00:44]} 20.
Rxe8+ {[%clk 01:21:42]} {[%emt 00:01:15]} Rxe8 {[%clk 01:10:59]} {[%emt
00:00:53]} 21. d5 {[%clk 01:18:18]} {[%emt 00:03:54]} h6 {[%clk 01:10:27]}
{[%emt 00:00:55]} 22. Qg3 {[%clk 01:14:44]} {[%emt 00:04:11]} Bxd5 {[%clk
01:09:59]} {[%emt 00:00:58]} 23. Qxc7 {[%clk 01:14:21]} {[%emt 00:00:53]} Re1+
{[%clk 01:10:07]} {[%emt 00:00:22]} 24. Kh2 {[%clk 01:14:30]} {[%emt 00:00:21]}
Bc6 {[%clk 01:10:15]} {[%emt 00:00:22]} 25. Nf3 {[%clk 01:13:03]} {[%emt
00:01:57]} Re2 {[%clk 01:10:11]} {[%emt 00:00:34]} 26. Nd4 {[%clk 01:10:26]}
{[%emt 00:03:07]} Re7 {[%clk 01:07:31]} {[%emt 00:03:09]} 27. Qb8+ {[%clk
01:08:33]} {[%emt 00:02:24]} Re8 {[%clk 01:07:32]} {[%emt 00:00:27]} 28. Qxa7
{[%clk 01:08:28]} {[%emt 00:00:38]} Bd5 {[%clk 01:07:16]} {[%emt 00:00:42]} 29.
g3 {[%clk 01:07:04]} {[%emt 00:01:57]} Re1 {[%clk 01:04:39]} {[%emt 00:03:05]}
30. f3 {[%clk 01:05:31]} {[%emt 00:02:05]} Ne5 {[%clk 01:02:35]} {[%emt
00:02:32]} 31. Qa5 {[%clk 00:58:49]} {[%emt 00:07:15]} Nxf3+ {[%clk 01:01:16]}
{[%emt 00:01:47]} 32. Nxf3 {[%clk 00:57:16]} {[%emt 00:02:04]} Re2+ {[%clk
01:01:13]} {[%emt 00:00:31]} 33. Kg1 {[%clk 00:57:08]} {[%emt 00:00:40]} Bxf3
{[%clk 01:00:53]} {[%emt 00:00:50]} 34. Qd8+ {[%clk 00:57:19]} {[%emt
00:00:19]} Kh7 {[%clk 01:01:01]} {[%emt 00:00:22]} 35. Qd3+ {[%clk 00:57:35]}
{[%emt 00:00:13]} 1-0

[Event "Mistrovství Čech mládeže 2023 - HD12"]
[Site "Harrachov, Czech Republic"]
[Date "2023.10.28"]
[Round "9.7"]
[White "Frantsev, Iegor"]
[Black "Janoušková, Eliška"]
[Result "1-0"]
[TimeControl "90m + 30s"]
[WhiteElo "1397"]
[BlackElo "1385"]

1. d4 {[%clk 01:30:59]} {[%emt 00:00:01]} c5 {[%clk 01:30:47]} {[%emt
00:00:12]} 2. Nf3 {[%clk 01:30:52]} {[%emt 00:00:36]} e6 {[%clk 01:30:37]}
{[%emt 00:00:41]} 3. c3 {[%clk 01:30:46]} {[%emt 00:00:36]} Nf6 {[%clk
01:29:06]} {[%emt 00:02:01]} 4. Bg5 {[%clk 01:30:40]} {[%emt 00:00:34]} Be7
{[%clk 01:26:59]} {[%emt 00:02:40]} 5. e3 {[%clk 01:30:01]} {[%emt 00:01:08]}
O-O {[%clk 01:25:20]} {[%emt 00:02:08]} 6. Bd3 {[%clk 01:29:20]} {[%emt
00:01:12]} a6 {[%clk 01:20:56]} {[%emt 00:04:55]} 7. a4 {[%clk 01:27:32]}
{[%emt 00:02:18]} b6 {[%clk 01:17:02]} {[%emt 00:04:23]} 8. O-O {[%clk
01:26:45]} {[%emt 00:01:16]} Bb7 {[%clk 01:15:19]} {[%emt 00:02:13]} 9. Nbd2
{[%clk 01:26:41]} {[%emt 00:00:35]} h6 {[%clk 01:10:47]} {[%emt 00:05:03]} 10.
Bh4 {[%clk 01:26:52]} {[%emt 00:00:19]} d6 {[%clk 01:07:25]} {[%emt 00:03:51]}
11. Re1 {[%clk 01:24:07]} {[%emt 00:03:15]} Nc6 {[%clk 01:04:09]} {[%emt
00:03:46]} 12. Qe2 {[%clk 01:22:37]} {[%emt 00:01:58]} Qc7 {[%clk 01:01:42]}
{[%emt 00:03:01]} 13. h3 {[%clk 01:06:07]} {[%emt 00:16:58]} Rac8 {[%emt
00:06:21]} 14. Bxa6 {[%emt 00:01:40]} Bxa6 {[%clk 00:57:09]} {[%emt 00:02:58]}
15. Qxa6 {[%emt 00:04:18]} Ra8 {[%clk 00:53:39]} 16. Qd3 {[%clk 00:59:48]}
{[%emt 00:02:04]} cxd4 {[%clk 00:52:08]} {[%emt 00:02:02]} 17. Nxd4 {[%clk
00:58:04]} {[%emt 00:02:14]} Ne5 {[%clk 00:48:28]} {[%emt 00:04:10]} 18. Qe2
{[%clk 00:56:15]} {[%emt 00:02:15]} Rfc8 {[%clk 00:45:48]} {[%emt 00:03:14]} 19.
Bg3 {[%clk 00:47:01]} {[%emt 00:09:41]} Ned7 {[%clk 00:41:46]} {[%emt
00:04:35]} 20. Ra2 {[%clk 00:34:12]} {[%emt 00:13:19]} Nc5 {[%clk 00:39:54]}
{[%emt 00:02:20]} 21. Rea1 {[%clk 00:32:16]} {[%emt 00:02:28]} Qd7 {[%clk
00:35:06]} {[%emt 00:05:17]} 22. a5 {[%clk 00:25:45]} {[%emt 00:07:00]} bxa5
{[%clk 00:34:23]} {[%emt 00:01:15]} 23. Rxa5 {[%clk 00:25:28]} {[%emt
00:00:48]} Rxa5 {[%clk 00:33:34]} {[%emt 00:01:19]} 24. Rxa5 {[%clk 00:25:53]}
{[%emt 00:00:05]} Nd5 {[%clk 00:32:37]} {[%emt 00:01:27]} 25. N2b3 {[%clk
00:19:20]} {[%emt 00:07:03]} Ne4 {[%clk 00:30:53]} {[%emt 00:02:14]} 26. Bh2
{[%clk 00:18:59]} {[%emt 00:00:50]} Qc7 {[%clk 00:27:39]} {[%emt 00:03:43]} 27.
f3 {[%clk 00:17:29]} {[%emt 00:01:58]} Nef6 {[%clk 00:26:13]} {[%emt 00:01:59]}
28. e4 {[%clk 00:17:42]} {[%emt 00:00:18]} Nb6 {[%clk 00:25:23]} {[%emt
00:01:19]} 29. Nb5 {[%clk 00:16:41]} {[%emt 00:01:31]} Qd8 {[%clk 00:22:58]}
{[%emt 00:02:56]} 30. e5 {[%clk 00:14:01]} {[%emt 00:03:10]} dxe5 {[%clk
00:22:58]} {[%emt 00:00:30]} 31. Bxe5 {[%clk 00:13:22]} {[%emt 00:01:09]} Nc4
{[%clk 00:22:46]} {[%emt 00:00:41]} 32. Ra1 {[%clk 00:09:14]} {[%emt 00:04:38]}
Nxe5 {[%clk 00:21:02]} {[%emt 00:02:14]} 33. Qxe5 {[%clk 00:09:35]} {[%emt
00:00:09]} Qb6+ {[%clk 00:21:07]} {[%emt 00:00:25]} 34. N5d4 {[%clk 00:09:06]}
{[%emt 00:00:59]} Nd5 {[%clk 00:21:12]} {[%emt 00:00:24]} 35. Kh1 {[%clk
00:09:05]} {[%emt 00:00:31]} Bd6 {[%clk 00:18:28]} {[%emt 00:03:14]} 36. Qe4
{[%clk 00:08:51]} {[%emt 00:00:43]} Qb7 {[%clk 00:12:58]} {[%emt 00:06:01]} 37.
Ra2 {[%clk 00:06:25]} {[%emt 00:02:52]} e5 {[%clk 00:11:08]} {[%emt 00:02:25]}
38. Nf5 {[%clk 00:05:54]} {[%emt 00:01:01]} Qxb3 {[%clk 00:10:51]} {[%emt
00:00:47]} 39. Nxd6 {[%clk 00:06:02]} {[%emt 00:00:23]} Rd8 {[%clk 00:08:44]}
{[%emt 00:02:37]} 40. Ra6 {[%clk 00:03:17]} {[%emt 00:03:15]} Nc7 {[%clk
00:06:02]} {[%emt 00:03:11]} 41. Rc6 {[%clk 00:02:28]} {[%emt 00:01:17]} Qd1+
{[%clk 00:04:59]} {[%emt 00:01:35]} 42. Kh2 {[%clk 00:02:49]} {[%emt 00:00:10]}
Rxd6 {[%clk 00:04:21]} {[%emt 00:01:07]} 43. Rxc7 {[%clk 00:03:08]} {[%emt
00:00:12]} f6 {[%clk 00:02:27]} {[%emt 00:02:24]} 44. Qg6 {[%clk 00:02:44]}
{[%emt 00:00:51]} Rd7 {[%clk 00:02:21]} {[%emt 00:00:38]} 45. Qe8+ {[%clk
00:03:06]} {[%emt 00:00:08]} 1-0